bitfinex/quotes_SOLUSD_20240726
["timestamp","ask_amount","ask_price","bid_price","bid_amount"]
[1722023958440,32.98,182.51,182.45,5.4809]
[1722023958621,68.38,182.53,182.47,5.48]
[1722023958622,45.0,182.5,182.47,5.48]
[1722023958823,77.98,182.53,182.46,13.7009]
[1722023959019,77.98,182.53,182.48,5.4798]
[1722023959226,45.0,182.53,182.5,5.4793]
[1722023959450,45.0,182.54,182.51,5.4791]
[1722023959649,77.98,182.55,182.51,5.4791]
[1722023959940,77.98,182.55,182.5,5.4794]
[1722023960152,78.43232762,182.55,182.5,5.4794]
[1722023960317,32.98,182.52,182.46,19.1818]
[1722023960524,45.0,182.51,182.46,19.1818]
[1722023961026,0.45232762,182.5,182.46,19.1818]
[1722023961728,45.0,182.51,182.49,13.6993]
[1722023962131,77.98,182.51,182.45,19.1823]
[1722023962330,0.45232762,182.5,182.46,5.4805]
[1722023962638,77.98,182.51,182.46,5.4805]
[1722023962840,0.45232762,182.5,182.46,5.4805]
[1722023963249,77.98,182.51,182.45,19.1826]
[1722023963540,0.45232762,182.5,182.45,19.1826]
[1722023963721,0.45232762,182.5,182.45,13.7017]
[1722023964555,33.43232762,182.5,182.44,5.4812]
[1722023964730,45.0,182.49,182.43,5.4815]
[1722023964929,0.45232762,182.48,182.43,5.4815]
[1722023965147,0.45232762,182.48,182.45,0.1365]
[1722023965932,0.45232762,182.48,182.45,0.2069]
[1722023966333,58.4604,182.47,182.45,0.2069]
[1722023966539,45.45232762,182.46,182.45,0.2069]
[1722023967133,78.43232762,182.46,182.45,0.2069]
[1722023969046,83.91292762,182.46,182.45,0.2069]
[1722023969740,78.43232762,182.46,182.45,0.2069]
[1722023970452,83.91292762,182.46,182.45,0.2069]
[1722023970768,78.43232762,182.46,182.45,0.2069]
[1722023972053,78.43232762,182.46,182.45,0.0704]
[1722023973249,83.91292762,182.46,182.45,0.0704]
[1722023975079,52.98,182.49,182.45,0.0704]
[1722023975445,0.45232762,182.48,182.45,5.5513]
[1722023975653,0.45232762,182.48,182.45,0.0704]
[1722023975963,32.98,182.5,182.45,0.0704]
[1722023976265,33.43232762,182.5,182.45,0.0704]
[1722023976628,32.98,182.5,182.45,0.0704]
[1722023976838,32.98,182.51,182.46,5.4805]
[1722023977036,6.2393,182.56,182.45,0.0704]
[1722023977353,25.477,182.58,182.51,5.4791]
[1722023977653,20.0,182.58,182.49,13.6992]
[1722023977845,5.4767,182.59,182.52,5.4788]
[1722023978154,32.98,182.59,182.52,13.6967]
[1722023978329,32.98,182.61,182.57,5.4773]
[1722023978537,20.0,182.64,182.58,5.4769]
[1722023978933,20.0,182.65,182.58,5.4769]
[1722023979140,32.98,182.64,182.56,5.4774]
[1722023979742,77.98,182.63,182.57,5.4771]
[1722023979942,77.98,182.63,182.55,13.6944]
[1722023979943,0.45232762,182.62,182.55,19.172]
[1722023980339,53.43232762,182.62,182.55,13.6944]
[1722023980545,77.98,182.61,182.55,19.1722]
[1722023980759,77.98,182.61,182.56,5.4775]
[1722023981052,77.98,182.61,182.55,13.6944]
[1722023981053,0.45232762,182.6,182.55,13.6944]
[1722023981253,77.98,182.61,182.55,19.1723]
[1722023982462,77.98,182.61,182.56,5.4776]
[1722023984748,77.98,182.61,182.55,13.6944]
[1722023985231,77.98,182.61,182.56,5.4776]
[1722023985438,32.98,182.63,182.56,1.09552755]
[1722023985636,32.98,182.63,182.55,13.6944]
[1722023985637,32.98,182.65,182.55,13.6944]
[1722023985873,32.98,182.65,182.58,5.477]
[1722023986472,38.4549,182.65,182.58,5.477]
[1722023986768,32.98,182.65,182.55,13.6944]
[1722023986946,77.98,182.64,182.57,5.477]
[1722023987149,77.98,182.64,182.55,13.6944]
[1722023987150,77.98,182.64,182.58,5.477]
[1722023987547,0.45232762,182.63,182.58,5.477]
[1722023987754,0.45232762,182.63,182.55,13.6944]
[1722023987968,0.45232762,182.63,182.56,0.0682]
[1722023988458,0.45232762,182.63,182.58,0.1359]
[1722023988857,77.98,182.64,182.6,5.4763]
[1722023989050,77.98,182.64,182.58,19.3053]
[1722023989051,97.98,182.64,182.58,19.3053]
[1722023989263,98.43232762,182.64,182.58,19.3053]
[1722023989458,77.98,182.64,182.58,19.3053]
[1722023989857,77.98,182.64,182.58,13.8285]
[1722023990072,32.98,182.66,182.61,5.4761]
[1722023990273,32.98,182.66,182.6,5.4764]
[1722023990457,38.4546,182.66,182.59,5.4767]
[1722023990657,0.45232762,182.65,182.59,5.4767]
[1722023990961,52.98,182.66,182.6,5.4764]
[1722023991169,5.475,182.65,182.58,19.3052]
[1722023991376,5.475,182.65,182.58,13.8285]
[1722023991377,45.45232762,182.64,182.58,13.8285]
[1722023991567,83.90752762,182.64,182.58,13.8285]
[1722023991746,5.4755,182.63,182.58,13.8285]
[1722023991954,45.45232762,182.62,182.58,0.1359]
[1722023992161,0.45232762,182.62,182.58,5.4769]
[1722023992480,97.98,182.64,182.56,13.6933]
[1722023992676,0.45232762,182.63,182.58,5.477]
[1722023993259,38.90792762,182.63,182.56,13.6933]
[1722023993564,38.90792762,182.63,182.57,5.4773]
[1722023993565,45.0,182.62,182.57,5.4773]
[1722023993983,0.45232762,182.61,182.56,19.1708]
[1722023994469,0.45232762,182.61,182.57,5.4772]
[1722023994870,45.0,182.62,182.58,5.477]
[1722023995069,45.0,182.62,182.56,13.6933]
[1722023995070,45.0,182.62,182.57,5.4772]
[1722023995284,45.45232762,182.62,182.57,5.4772]
[1722023995886,45.0,182.62,182.59,13.6914]
[1722023996095,52.98,182.66,182.6,5.4761]
[1722023997406,32.98,182.63,182.55,13.6942]
[1722023997561,32.98,182.63,182.52,27.3928]
[1722023997562,45.0,182.62,182.52,27.3928]
[1722023997761,45.0,182.62,182.58,13.6925]
[1722023998072,52.98,182.66,182.6,5.4761]
[1722023998390,52.98,182.66,182.61,5.476]
[1722023998697,0.45232762,182.65,182.61,5.476]
[1722023999471,52.98,182.66,182.61,5.476]
[1722023999985,45.0,182.65,182.59,5.4764]
[1722024000193,45.0,182.65,182.61,0.1356]
[1722024000493,45.0,182.65,182.61,5.6117]
[1722024001195,45.0,182.65,182.61,0.1356]
[1722024001900,0.45232762,182.64,182.61,0.1356]
[1722024002105,77.98,182.65,182.61,0.1356]
[1722024003098,45.0,182.65,182.61,5.6116]
[1722024003306,45.0,182.66,182.61,5.6116]
[1722024003484,45.0,182.66,182.61,5.6757]
[1722024003677,45.0,182.67,182.61,5.6757]
[1722024003878,45.0,182.67,182.62,5.4758]
[1722024004214,0.45232762,182.7,182.61,0.1997]
[1722024004215,32.98,182.7,182.63,13.6885]
[1722024004509,32.98,182.7,182.65,5.4747]
[1722024004682,0.45232762,182.69,182.63,13.6885]
[1722024004882,5.92602762,182.69,182.63,13.6885]
[1722024005082,38.90602762,182.69,182.63,13.6885]
[1722024005497,38.4541,182.68,182.61,5.6758]
[1722024005687,83.90672762,182.67,182.61,5.6758]
[1722024005886,77.98,182.67,182.61,5.6756]
[1722024006104,77.98,182.67,182.61,0.1997]
[1722024007006,77.98,182.67,182.61,5.4761]
[1722024007179,45.0,182.67,182.62,13.6894]
[1722024007671,0.45232762,182.66,182.62,13.6894]
[1722024008000,45.0,182.67,182.65,5.4749]
[1722024008518,45.0,182.67,182.62,13.6894]
[1722024008519,0.45232762,182.66,182.62,13.6894]
[1722024008715,45.0,182.67,182.64,5.4751]
[1722024009191,45.0,182.67,182.66,5.4746]
[1722024009397,32.98,182.7,182.65,5.4749]
[1722024009894,32.98,182.7,182.64,19.1626]
[1722024010117,33.43232762,182.7,182.65,5.4749]
[1722024010295,32.98,182.7,182.65,5.4749]
[1722024010899,45.0,182.69,182.65,5.4749]
[1722024011404,45.0,182.69,182.66,5.4746]
[1722024011605,45.45232762,182.69,182.65,5.4749]
[1722024012500,45.0,182.69,182.66,5.4745]
[1722024012699,45.0,182.69,182.67,5.4742]
[1722024012890,45.0,182.69,182.68,5.474]
[1722024013293,11.67,182.7,182.67,19.1598]
[1722024013489,11.67,182.7,182.67,19.1599]
[1722024013697,32.98,182.74,182.68,5.4737]
[1722024014021,11.67,182.71,182.68,5.4737]
[1722024014384,11.67,182.72,182.67,13.6856]
[1722024014593,11.67,182.73,182.69,5.4737]
[1722024014791,11.67,182.74,182.69,5.4737]
[1722024014991,11.67,182.73,182.69,5.4737]
[1722024015207,38.90362762,182.77,182.7,5.4732]
[1722024015409,5.92402762,182.76,182.7,5.4732]
[1722024015895,5.4723,182.74,182.68,5.4738]
[1722024016097,0.45232762,182.73,182.68,5.4738]
[1722024016384,0.45232762,182.73,182.67,13.6856]
[1722024016611,38.4528,182.72,182.66,15.1531]
[1722024016786,45.45232762,182.71,182.66,20.6276]
[1722024016986,45.0,182.71,182.66,20.6276]
[1722024018414,45.0,182.71,182.68,5.474]
[1722024018717,45.0,182.71,182.66,28.839]
[1722024018929,45.0,182.71,182.67,5.4743]
[1722024020527,0.45232762,182.7,182.67,5.4743]
[1722024021027,45.0,182.71,182.67,5.4743]
[1722024021543,0.45232762,182.7,182.66,13.7486]
[1722024021732,0.45232762,182.7,182.66,0.0627]
[1722024021935,5.4738,182.69,182.66,0.0627]
[1722024022105,45.45232762,182.68,182.66,0.0627]
[1722024022422,0.45232762,182.67,182.66,0.0627]
[1722024023612,77.98,182.68,182.66,0.0627]
[1722024024032,53.43232762,182.67,182.66,0.0627]
[1722024024221,98.43232762,182.67,182.66,0.0627]
[1722024024723,103.90662762,182.67,182.66,0.0627]
[1722024025943,77.98,182.67,182.66,0.0627]
[1722024026150,103.90662762,182.67,182.66,0.0627]
[1722024028010,83.4543,182.67,182.66,0.0627]
[1722024028420,83.90662762,182.67,182.66,0.0627]
[1722024029228,83.4543,182.67,182.66,0.0627]
[1722024029823,83.90662762,182.67,182.66,0.0627]
[1722024030539,103.90662762,182.67,182.66,0.0627]
[1722024035126,52.98,182.67,182.66,0.0627]
[1722024035325,58.90662762,182.67,182.66,0.0627]
[1722024036930,103.90662762,182.67,182.66,0.0627]
[1722024037131,115.58662762,182.67,182.66,0.0627]
[1722024040855,90.11232762,182.67,182.66,0.0627]
[1722024041056,115.58662762,182.67,182.66,0.0627]
[1722024044958,115.58662762,182.67,182.66,0.1979]
[1722024048062,11.68,182.58,182.54,13.6954]
[1722024048264,57.13232762,182.57,182.54,13.6954]
[1722024048442,56.68,182.57,182.54,13.6954]
[1722024048770,11.68,182.55,182.5,13.6981]
[1722024049079,11.68,182.51,182.49,15.3985]
[1722024049378,57.13232762,182.5,182.45,15.3985]
[1722024049542,45.45232762,182.5,182.46,5.4806]
[1722024049873,11.68,182.48,182.46,5.4806]
[1722024050180,11.68,182.48,182.45,15.3985]
[1722024050338,57.13232762,182.47,182.44,13.7031]
[1722024050547,0.45232762,182.46,182.44,13.7031]
[1722024050749,11.68,182.45,182.41,30.3641]
[1722024051265,45.0,182.47,182.44,5.4812]
[1722024051768,0.45232762,182.46,182.44,5.4812]
[1722024052671,0.45232762,182.47,182.44,5.4812]
[1722024053043,32.98,182.52,182.47,5.4803]
[1722024053251,0.45232762,182.51,182.48,5.48]
[1722024053565,0.45232762,182.51,182.45,13.7016]
[1722024053953,0.45232762,182.51,182.46,5.4806]
[1722024054157,33.43232762,182.51,182.41,16.6588]
[1722024054358,103.4596,182.5,182.44,13.7029]
[1722024054659,38.91232762,182.49,182.43,5.4815]
[1722024054867,45.45232762,182.48,182.44,5.4812]
[1722024055047,45.0,182.48,182.45,5.4807]
[1722024055455,0.45232762,182.51,182.45,5.4807]
[1722024055685,32.98,182.49,182.41,30.3641]
[1722024055976,32.98,182.47,182.41,30.3641]
[1722024056176,0.45232762,182.46,182.41,35.8462]
[1722024056389,0.45232762,182.46,182.42,5.4818]
[1722024056760,45.45232762,182.46,182.42,5.4818]
[1722024056959,0.45232762,182.45,182.42,5.4818]
[1722024057466,45.0,182.46,182.42,5.4818]
[1722024058259,45.0,182.46,182.41,35.8461]
[1722024058780,0.45232762,182.45,182.42,5.4817]
[1722024058962,45.0,182.46,182.42,5.4817]
[1722024059363,45.45232762,182.46,182.42,5.4817]
[1722024059584,0.45232762,182.45,182.42,5.4817]
[1722024059779,0.45232762,182.45,182.37,30.0891]
[1722024060778,0.45232762,182.45,182.4,5.4823]
[1722024061683,52.98,182.44,182.38,5.483]
[1722024061865,78.43232762,182.43,182.38,5.483]
[1722024062075,0.45232762,182.42,182.38,5.483]
[1722024062291,77.98,182.43,182.39,5.4826]
[1722024063555,78.43232762,182.43,182.39,5.4826]
[1722024063760,77.98,182.43,182.38,5.483]
[1722024063968,52.98,182.42,182.37,13.7077]
[1722024064177,45.0,182.41,182.37,13.7077]
[1722024064383,45.0,182.41,182.35,0.7852114]
[1722024064384,78.43232762,182.41,182.35,0.7852114]
[1722024064664,78.43232762,182.41,182.35,6.2690114]
[1722024065470,83.91452762,182.41,182.35,6.2690114]
[1722024065780,38.4626,182.4,182.35,0.7852114]
[1722024065975,45.45232762,182.39,182.35,0.7852114]
[1722024067059,45.0,182.39,182.35,0.7852114]
[1722024067266,45.0,182.39,182.35,6.2689114]
[1722024067672,77.98,182.39,182.35,6.2690114]
[1722024068083,78.43232762,182.39,182.35,0.7852114]
[1722024068281,32.98,182.37,182.35,0.7852114]
[1722024068466,45.45232762,182.36,182.35,0.7852114]
[1722024068894,78.43232762,182.36,182.35,0.7852114]
[1722024069394,77.98,182.36,182.35,0.7852114]
[1722024071090,98.43232762,182.36,182.35,0.7852114]
[1722024071479,103.91592762,182.36,182.35,0.7852114]
[1722024072013,125.6824,182.36,182.35,0.7852114]
[1722024072181,125.6824,182.36,182.21,42.6352]
[1722024072182,32.98,182.3,182.21,15.1956]
[1722024072488,32.98,182.26,182.21,15.1956]
[1722024072997,32.98,182.26,182.21,34.4032]
[1722024073196,11.73,182.25,182.22,5.4878]
[1722024073382,45.0,182.24,182.23,5.4875]
[1722024074194,89.71,182.24,182.17,14.5084114]
[1722024074377,11.73,182.22,182.19,5.4887]
[1722024074577,11.73,182.22,182.17,14.5084114]
[1722024074578,0.45232762,182.23,182.17,0.7852114]
[1722024074780,12.18232762,182.23,182.2,5.4884]
[1722024075003,89.71,182.22,182.17,0.7852114]
[1722024075306,45.0,182.21,182.18,19.211]
[1722024075595,45.0,182.21,182.19,5.4886]
[1722024075902,45.0,182.21,182.2,5.4884]
[1722024077285,45.0,182.21,182.18,13.722]
[1722024077491,0.45232762,182.2,182.17,0.7852114]
[1722024077690,45.0,182.21,182.17,0.7852114]
[1722024077892,83.4682,182.21,182.17,0.7852114]
[1722024078090,0.45232762,182.2,182.17,0.7852114]
[1722024078695,0.45232762,182.2,182.14,13.725]
[1722024078895,77.98,182.21,182.14,13.725]
[1722024079405,77.98,182.21,182.06,50.4877]
[1722024079406,52.98,182.19,182.06,50.4877]
[1722024079591,0.45232762,182.18,182.06,50.4877]
[1722024079903,78.43232762,182.18,182.06,50.4877]
[1722024080101,0.45232762,182.17,182.11,19.2187]
[1722024080306,58.4702,182.15,182.08,5.492]
[1722024080599,83.92262762,182.14,182.08,5.492]
[1722024080896,83.92262762,182.14,182.07,13.7302]
[1722024080897,78.43232762,182.14,182.07,13.7302]
[1722024081103,83.92262762,182.14,182.07,13.7302]
[1722024081310,32.98,182.1,182.04,13.733]
[1722024081484,32.98,182.1,182.0,19.2303]
[1722024081485,5.4929,182.06,182.0,19.2303]
[1722024081678,5.493,182.05,181.98,6.2801114]
[1722024081895,45.0,182.04,181.98,0.7852114]
[1722024082104,45.0,182.04,182.0,5.4942]
[1722024082301,45.0,182.05,182.01,13.7351]
[1722024082603,20.0,182.12,182.06,5.4926]
[1722024082790,20.0,182.12,182.05,5.4929]
[1722024082791,45.45232762,182.11,182.05,5.4929]
[1722024082993,45.45232762,182.11,182.04,5.4932]
[1722024082994,0.45232762,182.1,182.04,5.4932]
[1722024083195,5.4918,182.09,181.98,0.7852114]
[1722024083496,32.98,182.06,182.01,19.2289]
[1722024083688,45.0,182.05,182.01,19.2289]
[1722024084806,36.23268662,182.05,182.02,5.4938]
[1722024085913,36.23268662,182.05,182.01,13.7348]
[1722024086089,36.23268662,182.05,182.01,19.2287]
[1722024086806,36.23268662,182.05,182.01,13.7348]
[1722024087205,32.98,182.03,181.98,0.7852114]
[1722024087508,32.98,182.01,181.98,0.7852114]
[1722024087698,45.0,182.0,181.98,0.7852114]
[1722024090223,33.43232762,182.04,181.99,5.4947]
[1722024090526,27.4391,182.23,182.02,13.734]
[1722024090527,0.45232762,182.07,182.02,13.734]
[1722024090821,0.45232762,182.11,182.07,5.4923]
[1722024091022,0.45232762,182.11,182.05,13.7322]
[1722024091317,39.1172,182.14,182.1,5.4913]
[1722024091519,32.98,182.14,182.1,5.4913]
[1722024091705,32.98,182.14,182.07,13.7302]
[1722024091894,32.98,182.15,182.1,5.4914]
[1722024092290,0.45232762,182.17,182.04,1.09833031]
[1722024092291,32.98,182.17,182.04,1.09833031]
[1722024092508,20.0,182.2,182.14,5.4902]
[1722024092709,20.45232762,182.2,182.13,13.7257]
[1722024092894,0.45232762,182.2,182.15,5.4897]
[1722024093213,49.40892762,182.27,182.19,5.4887]
[1722024093399,49.40892762,182.27,182.19,13.7215]
[1722024093400,32.98,182.26,182.19,13.7215]
[1722024093721,13.7257,182.31,182.17,1.09773572]
[1722024093722,23.47,182.3,182.22,13.719]
[1722024093919,28.9556,182.3,182.23,5.4874]
[1722024094093,0.45232762,182.29,182.23,5.4874]
[1722024094299,20.45232762,182.29,182.18,13.7221]
[1722024094517,38.4662,182.28,182.21,5.488]
[1722024094698,32.98,182.25,182.19,5.4886]
[1722024095494,0.45232762,182.24,182.18,13.7221]
[1722024095705,32.98,182.25,182.18,13.7221]
[1722024095914,32.98,182.25,182.2,5.4884]
[1722024096114,45.0,182.24,182.2,5.4884]
[1722024096305,77.98,182.25,182.2,5.4884]
[1722024097328,77.98,182.25,182.18,19.2109]
[1722024097493,76.90232762,182.24,182.16,5.4894]
[1722024097814,78.43232762,182.23,182.16,5.4894]
[1722024098017,83.91992762,182.23,182.16,5.4894]
[1722024098323,83.4676,182.23,182.17,5.4893]
[1722024098621,77.98,182.23,182.17,5.4893]
[1722024098804,77.98,182.23,182.18,5.4889]
[1722024099393,78.43232762,182.23,182.18,5.4889]
[1722024100220,77.98,182.23,182.18,5.4889]
[1722024101526,45.0,182.23,182.17,13.7234]
[1722024101722,45.0,182.24,182.2,5.4884]
[1722024101915,45.0,182.25,182.2,5.4884]
[1722024102116,77.98,182.25,182.2,5.4884]
[1722024103029,78.43232762,182.25,182.17,13.7234]
[1722024104023,38.4673,182.24,182.17,19.2125]
[1722024104327,45.0,182.23,182.17,19.2125]
[1722024105132,45.0,182.23,182.18,5.4889]
[1722024106618,45.45232762,182.23,182.19,5.4887]
[1722024107320,45.0,182.23,182.19,5.4887]
[1722024107826,45.0,182.23,182.2,5.4884]
[1722024108538,38.4667,182.26,182.2,5.4884]
[1722024109134,32.98,182.25,182.17,13.7234]
[1722024109434,0.45232762,182.24,182.17,13.7234]
[1722024109839,45.45232762,182.24,182.17,13.7234]
[1722024110147,50.4874,182.24,182.18,5.489]
[1722024110314,0.45232762,182.23,182.18,5.489]
[1722024110925,50.4874,182.24,182.18,5.489]
[1722024111133,45.0,182.24,182.19,5.4887]
[1722024111716,0.45232762,182.23,182.18,5.489]
[1722024111901,45.0,182.24,182.19,5.4886]
[1722024112509,32.98,182.29,182.22,5.4878]
[1722024112902,5.4862,182.28,182.22,5.4878]
[1722024113110,32.98,182.29,182.23,5.4875]
[1722024113321,33.43232762,182.32,182.22,13.7189]
[1722024113541,38.4654,182.3,182.23,6.58470252]
[1722024113911,5.4858,182.29,182.23,6.58470252]
[1722024114122,32.98,182.3,182.24,1.09739664]
[1722024114324,5.4853,182.31,182.25,5.4869]
[1722024114938,0.45232762,182.3,182.25,5.4869]
[1722024115240,5.4853,182.31,182.25,5.4869]
[1722024115854,32.98,182.33,182.24,13.7176]
[1722024116034,5.4846,182.33,182.27,5.4861]
[1722024116346,32.98,182.34,182.29,5.4856]
[1722024116544,32.98,182.34,182.26,13.7161]
[1722024116750,5.484,182.35,182.26,13.7161]
[1722024116934,32.98,182.38,182.3,5.4851]
[1722024117121,45.7482,182.39,182.3,6.58205639]
[1722024117122,38.4636,182.37,182.3,6.58205639]
[1722024117324,5.4837,182.36,182.3,6.58205639]
[1722024117523,5.4837,182.36,182.3,1.09695639]
[1722024117939,38.4634,182.37,182.3,1.09695639]
[1722024119164,5.4834,182.37,182.31,5.485]
[1722024119356,45.0,182.36,182.31,5.485]
[1722024119927,0.45232762,182.35,182.29,13.7138]
[1722024120129,5.4846,182.33,182.27,12.0715]
[1722024120328,5.4843,182.34,182.27,12.0715]
[1722024120555,45.45232762,182.33,182.27,12.0715]
[1722024120835,45.45232762,182.33,182.26,13.7166]
[1722024120836,0.45232762,182.32,182.26,13.7166]
[1722024121457,5.4852,182.31,182.24,5.487]
[1722024121749,126.9345,182.33,182.25,13.7167]
[1722024121949,101.45,182.33,182.28,5.4858]
[1722024122164,68.47,182.33,182.3,5.4853]
[1722024122450,68.47,182.33,182.27,13.7153]
[1722024122451,45.0,182.33,182.27,13.7153]
[1722024123370,45.0,182.33,182.27,19.2014]
[1722024123661,45.0,182.33,182.26,5.4865]
[1722024123831,0.45232762,182.32,182.24,19.2048]
[1722024124250,5.4852,182.31,182.25,5.4868]
[1722024124549,45.0,182.3,182.25,5.4868]
[1722024125348,45.0,182.3,182.26,5.4866]
[1722024125548,45.45232762,182.31,182.26,5.4866]
[1722024126067,32.98,182.3,182.22,6.376]
[1722024126352,83.91832762,182.29,182.23,5.4875]
[1722024127260,83.466,182.29,182.23,5.4875]
[1722024127838,83.466,182.29,182.2,13.7209]
[1722024128047,0.45232762,182.28,182.17,6.2596]
[1722024128359,33.43232762,182.28,182.21,5.4881]
[1722024128553,45.0,182.27,182.22,5.4877]
[1722024128863,45.0,182.27,182.22,13.7189]
[1722024129036,45.0,182.27,182.25,5.4869]
[1722024129237,45.0,182.27,182.24,5.4872]
[1722024129436,45.0,182.27,182.23,5.4875]
[1722024129872,45.0,182.27,182.22,19.2067]
[1722024130361,50.4863,182.27,182.22,19.2067]
[1722024130568,50.4863,182.27,182.2,5.4884]
[1722024130569,5.93922762,182.26,182.2,5.4884]
[1722024130780,50.487,182.25,182.19,19.2105]
[1722024131078,45.0,182.25,182.2,5.4884]
[1722024131774,0.45232762,182.24,182.19,19.2106]
[1722024132171,0.45232762,182.24,182.2,5.4884]
[1722024132967,45.0,182.25,182.2,5.4884]
[1722024133170,45.0,182.25,182.19,13.7219]
[1722024133375,5.4873,182.24,182.19,13.7219]
[1722024133551,45.0,182.25,182.19,13.7219]
[1722024133953,0.45232762,182.24,182.19,13.7219]
[1722024134176,5.93952762,182.24,182.19,13.7219]
[1722024134348,45.0,182.23,182.19,19.2106]
[1722024134764,45.0,182.24,182.19,19.2106]
[1722024134981,5.4866,182.26,182.2,5.4883]
[1722024135280,45.0,182.25,182.21,5.488]
[1722024135469,45.0,182.26,182.21,5.488]
[1722024136164,50.4867,182.26,182.2,5.4884]
[1722024137578,45.0,182.26,182.21,5.4881]
[1722024137777,45.0,182.26,182.22,5.4878]
[1722024138079,45.0,182.27,182.22,5.4878]
[1722024138787,45.0,182.27,182.23,5.4874]
[1722024139075,45.0,182.27,182.22,19.2074]
[1722024139379,50.4863,182.27,182.22,19.2074]
[1722024139551,5.4855,182.3,182.24,5.4872]
[1722024139754,5.4857,182.29,182.24,5.4872]
[1722024140059,5.4857,182.29,182.22,13.7196]
[1722024140256,5.486,182.28,182.22,13.7196]
[1722024141081,56.45,182.31,182.19,13.7217]
[1722024141082,5.4867,182.26,182.19,13.7217]
[1722024141251,50.487,182.25,182.19,13.7217]
[1722024141761,45.0,182.25,182.2,5.4884]
[1722024142884,0.45232762,182.24,182.19,19.2104]
[1722024143463,50.487,182.25,182.19,19.2104]
[1722024143777,50.487,182.25,182.2,5.4884]
[1722024143956,45.0,182.25,182.2,4.9884]
[1722024144668,45.0,182.25,182.19,13.7217]
[1722024144669,0.45232762,182.24,182.19,13.7217]
[1722024144870,50.487,182.25,182.19,19.2103]
[1722024145370,50.487,182.25,182.2,5.4884]
[1722024145867,50.93932762,182.25,182.19,19.2104]
[1722024146073,45.0,182.25,182.2,5.4884]
[1722024146878,5.4875,182.23,182.17,5.4892]
[1722024147177,49.1939,182.24,182.16,13.7241]
[1722024147178,45.0,182.22,182.18,5.489]
[1722024147379,45.0,182.25,182.15,28.54735471]
[1722024147574,45.0,182.26,182.22,5.4877]
[1722024147768,45.0,182.26,182.22,13.7191]
[1722024148167,45.0,182.26,182.23,5.4875]
[1722024148364,21.6997,182.29,182.23,5.4875]
[1722024148881,5.4861,182.28,182.22,13.7191]
[1722024149066,49.1939,182.29,182.22,13.7191]
[1722024149260,5.486,182.28,182.22,19.2069]
[1722024149762,49.1939,182.29,182.23,5.4874]
[1722024149966,5.4858,182.29,182.23,5.4874]
[1722024150162,5.4858,182.29,182.24,5.4872]
[1722024150370,32.98,182.31,182.25,5.4867]
[1722024150587,32.98,182.31,182.26,5.4865]
[1722024150766,33.43232762,182.31,182.26,5.4865]
[1722024150971,33.43232762,182.31,182.25,5.4869]
[1722024151198,0.45232762,182.31,182.25,5.4869]
[1722024151376,0.45232762,182.31,182.23,5.4875]
[1722024151684,5.4861,182.28,182.22,5.4877]
[1722024152182,45.0,182.27,182.22,5.4877]
[1722024152379,45.0,182.27,182.23,5.4874]
[1722024152569,45.0,182.28,182.23,5.4874]
[1722024153886,45.0,182.28,182.21,13.7202]
[1722024153887,45.45232762,182.28,182.21,13.7202]
[1722024154080,5.4864,182.27,182.21,19.2082]
[1722024154273,77.98,182.29,182.2,5.4884]